bitfinex-derivatives/quotes_BNBF0:USTF0_20250609
["timestamp","ask_amount","ask_price","bid_price","bid_amount"]
[1749450402321,0.26819259,649.08,648.24,1.231]
[1749450404223,1.11223107,649.14,648.24,1.231]
[1749450404422,1.11223107,649.13,648.24,1.231]
[1749450404622,0.2682391,648.88,648.24,1.231]
[1749450411624,0.2682391,648.88,648.31,3.83782869]
[1749450412025,0.2682391,648.88,648.3,3.83782869]
[1749450412531,0.2682391,648.88,648.27,3.83782869]
[1749450412929,0.2682391,648.88,648.24,5.06882869]
[1749450413431,0.2682391,648.88,648.24,1.231]
[1749450422829,0.2682391,648.88,648.25,3.83782869]
[1749450423235,0.2682391,648.88,648.24,1.231]
[1749450425336,0.2682391,648.88,648.23,0.30853246]
[1749450428840,0.2682391,648.88,648.24,1.069]
[1749450445651,0.2682391,648.88,648.23,0.30853246]
[1749450449260,0.2682391,648.88,648.24,0.908]
[1749450470172,0.2682391,648.88,648.23,0.30853246]
[1749450475077,0.2682391,648.88,648.24,1.031]
[1749450499693,0.2682391,648.88,648.24,4.86882869]
[1749450499992,0.2682391,648.88,648.24,3.83782869]
[1749450500793,0.2682391,648.88,648.23,3.83782869]
[1749450501194,0.2682391,648.88,648.24,3.83782869]
[1749450501596,0.2682391,648.88,648.23,3.83782869]
[1749450502598,0.2682391,648.88,648.01,5.3393006]
[1749450502599,0.2682391,648.88,648.22,3.83782869]
[1749450502799,0.2682391,648.88,648.24,1.055]
[1749450502994,0.2682391,648.88,648.24,4.89282869]
[1749450503700,0.2682391,648.88,648.24,1.055]
[1749450513712,0.2682391,648.88,648.24,4.89282869]
[1749450515014,0.2682391,648.88,648.25,3.83782869]
[1749450516014,0.2682391,648.88,648.24,4.89282869]
[1749450517816,0.2682391,648.88,648.26,3.83782869]
[1749450527827,0.2682391,648.88,648.24,1.055]
[1749450527828,0.2682391,648.88,648.24,4.89282869]
[1749450529533,0.2682391,648.88,648.24,1.055]
[1749450530031,0.2682391,648.88,648.17,3.83782869]
[1749450530432,0.2682391,648.88,648.16,3.83782869]
[1749450530833,0.2682391,648.88,648.17,3.83782869]
[1749450532235,0.2682391,648.88,648.18,3.83782869]
[1749450533037,0.2682391,648.88,648.17,3.83782869]
[1749450535732,0.2682391,648.88,648.15,3.83782869]
[1749450536236,0.2682391,648.88,648.16,3.83782869]
[1749450538131,0.2682391,648.88,648.18,3.83782869]
[1749450539336,0.2682391,648.88,648.24,3.83782869]
[1749450543443,0.2682391,648.88,648.04,3.83782869]
[1749450543840,0.2682391,648.88,648.02,3.83782869]
[1749450545740,0.2682391,648.88,648.03,3.83782869]
[1749450546542,0.2682391,648.88,648.04,0.30862292]
[1749450556455,0.2682391,648.88,648.24,3.83782869]
[1749450557248,0.2682391,648.88,648.18,3.83782869]
[1749450557651,0.2682391,648.88,648.19,3.83782869]
[1749450559156,0.2682391,648.88,648.23,3.83782869]
[1749450560553,0.2682391,648.88,648.22,3.83782869]
[1749450561858,0.2682391,648.88,648.23,3.83782869]
[1749450562656,0.2682391,648.88,648.21,3.83782869]
[1749450564058,0.2682391,648.88,648.16,0.802]
[1749450564059,0.2682391,648.88,648.2,3.83782869]
[1749450564957,0.2682391,648.88,648.21,3.83782869]
[1749450565355,0.2682391,648.88,648.2,3.83782869]
[1749450566256,0.2682391,648.88,648.16,4.63982869]
[1749450567262,0.2682391,648.88,648.19,3.83782869]
[1749450567659,0.2682391,648.88,648.17,3.83782869]
[1749450569861,0.2682391,648.88,648.16,0.802]
[1749450573870,0.2682391,648.88,648.16,4.63982869]
[1749450576271,0.2682391,648.88,648.2,3.83782869]
[1749450579873,0.2682391,648.88,648.26,3.83782869]
[1749450580778,0.2682391,648.88,648.18,3.83782869]
[1749450581679,0.2682391,648.88,648.16,3.83782869]
[1749450582074,0.2682391,648.88,648.14,3.83782869]
[1749450583277,0.2682391,648.88,648.15,0.963]
[1749450586485,0.2682391,648.88,648.16,3.83782869]
[1749450590589,0.2682391,648.88,648.22,3.83782869]
[1749450591987,0.2682391,648.88,648.32,3.83782869]
[1749450592387,0.2682391,648.88,648.15,0.963]
[1749450600497,0.2682391,648.88,648.04,0.30862292]
[1749450602401,0.2682391,648.88,648.13,3.83782869]
[1749450602998,0.2682391,648.88,648.14,0.3085753]
[1749450603296,0.2682391,648.88,648.15,3.83782869]
[1749450603501,0.2682391,648.88,648.15,4.14639923]
[1749450603697,0.2682391,648.88,648.16,3.83782869]
[1749450604503,0.2682391,648.88,648.15,0.30857054]
[1749450604504,0.2682391,648.88,648.17,1.2]
[1749450608302,0.2682391,648.88,648.33,3.83782869]
[1749450611307,0.2682391,648.88,648.35,3.83782869]
[1749450611803,0.2682391,648.88,648.36,3.83782869]
[1749450612702,0.2682391,648.88,648.35,3.83782869]
[1749450613105,0.2682391,648.88,648.36,3.83782869]
[1749450613506,0.2682391,648.88,648.35,3.83782869]
[1749450614511,0.2682391,648.88,648.44,3.83782869]
[1749450617714,0.2682391,648.88,648.42,3.83782869]
[1749450623516,0.2682391,648.88,648.35,3.83782869]
[1749450624817,0.2682391,648.88,648.34,3.83782869]
[1749450626515,0.2682391,648.88,648.35,3.83782869]
[1749450626915,0.2682391,648.88,648.33,3.83782869]
[1749450627519,0.2682391,648.88,648.41,3.83782869]
[1749450627921,0.2682391,648.88,648.38,3.83782869]
[1749450628328,0.2682391,648.88,648.32,3.83782869]
[1749450628824,0.2682391,648.88,648.15,0.30857054]
[1749450628825,0.2682391,648.88,648.33,3.83782869]
[1749450629225,0.2682391,648.88,648.37,3.83782869]
[1749450630827,1.11288017,649.42,648.37,3.83782869]
[1749450631122,0.26817916,648.95,648.36,3.83782869]
[1749450631327,1.11288017,649.4,648.36,3.83782869]
[1749450631626,0.26816676,648.95,648.35,3.83782869]
[1749450631827,1.11288017,649.38,648.35,3.83782869]
[1749450632021,0.26816986,648.95,648.35,3.83782869]
[1749450632423,1.11288017,649.35,648.36,3.83782869]
[1749450632723,0.26817192,648.95,648.36,3.83782869]
[1749450632922,1.11288017,649.33,648.36,3.83782869]
[1749450633124,0.26817296,649.11,648.36,3.83782869]
[1749450633724,0.26817296,649.11,648.31,3.83782869]
[1749450635029,0.26817296,649.11,648.3,3.83782869]
[1749450636129,0.26817296,649.11,648.31,3.83782869]
[1749450637130,0.26817296,649.11,648.3,3.83782869]
[1749450637328,0.26817296,649.11,648.31,3.83782869]
[1749450637925,0.26817296,649.11,648.28,3.83782869]
[1749450639729,0.26817296,649.11,648.19,3.83782869]
[1749450639927,0.26817296,649.11,648.2,0.30854674]
[1749450641127,0.26817296,649.11,648.21,3.83782869]
[1749450641331,0.26817296,649.11,648.22,0.30853722]
[1749450643334,0.26817296,649.11,648.24,3.83782869]
[1749450644635,0.26817296,649.11,648.25,1.227]
[1749450657647,0.26817296,649.11,648.41,3.83782869]
[1749450658141,0.26817296,649.11,648.42,3.83782869]
[1749450658645,0.26817296,649.11,648.44,3.83782869]
[1749450658846,0.26817296,649.11,648.41,3.83782869]
[1749450659542,0.26817296,649.11,648.42,3.83782869]
[1749450659942,0.26817296,649.11,648.25,1.227]
[1749450660742,0.26817296,649.11,648.22,0.30853722]
[1749450663146,1.11428339,649.1,648.22,0.30853722]
[1749450663448,0.26817296,649.11,648.23,0.898]
[1749450672350,0.26817296,649.11,648.24,3.83782869]
[1749450672754,0.26817296,649.11,648.23,4.73582869]
[1749450675454,0.26817296,649.11,648.23,0.898]
[1749450686359,0.26817296,649.11,648.22,0.30853722]
[1749450689163,0.26817296,649.11,648.23,1.171]
[1749450690266,0.26817296,649.11,648.23,5.00882869]
[1749450691268,0.26817296,649.11,648.24,3.83782869]
[1749450692071,0.26817296,649.11,648.23,1.171]
[1749450692072,0.26817296,649.11,648.23,5.00882869]
[1749450692572,0.26817296,649.11,648.24,3.83782869]
[1749450693472,0.26817296,649.11,648.32,3.83782869]
[1749450695669,0.26817296,649.11,648.23,1.171]
[1749450704178,0.26817296,649.11,648.22,0.30853722]
[1749450707780,0.26817296,649.11,648.23,0.844]
[1749450720788,0.26817296,649.11,648.22,0.30853722]
[1749450723385,0.26817296,649.11,648.26,3.83782869]
[1749450724788,0.26817296,649.11,648.27,1.152]
[1749450726588,0.26817296,649.11,648.27,4.98982869]
[1749450728189,0.26817296,649.11,648.28,3.83782869]
[1749450728995,0.26817296,649.11,648.29,3.83782869]
[1749450730394,0.26817296,649.11,648.31,3.83782869]
[1749450732797,0.26817296,649.11,648.32,3.83782869]
[1749450733295,0.26817296,649.11,648.31,3.83782869]
[1749450734501,0.26817296,649.11,648.32,3.83782869]
[1749450737202,0.26817296,649.11,648.28,3.83782869]
[1749450737604,0.26817296,649.11,648.29,3.83782869]
[1749450738206,0.26817296,649.11,648.4,3.83782869]
[1749450738706,0.26817296,649.11,648.41,3.83782869]
[1749450739802,0.26817296,649.11,648.42,3.83782869]
[1749450741606,0.26817296,649.11,648.4,3.83782869]
[1749450742608,0.26817296,649.11,648.38,3.83782869]
[1749450743008,0.26817296,649.11,648.35,3.83782869]
[1749450743408,0.26817296,649.11,648.34,3.83782869]
[1749450744105,0.26817296,649.11,648.35,3.83782869]
[1749450744809,0.26817296,649.11,648.34,3.83782869]
[1749450745209,0.26817296,649.11,648.33,3.83782869]
[1749450745909,0.26817296,649.11,648.34,1.008]
[1749450746911,0.26817296,649.11,648.39,3.83782869]
[1749450747507,0.26817296,649.11,648.38,3.83782869]
[1749450747913,0.26817296,649.11,648.34,1.008]
[1749450757914,0.26817296,649.11,648.45,3.83782869]
[1749450759414,0.26817296,649.11,648.44,3.83782869]
[1749450760118,0.26817296,649.11,648.45,3.83782869]
[1749450762419,0.26817296,649.11,648.44,3.83782869]
[1749450762919,0.26817296,649.11,648.34,1.008]
[1749450762920,0.26817296,649.11,648.45,3.83782869]
[1749450766020,0.26817296,649.11,648.34,1.008]
[1749450769018,0.26817296,649.11,648.27,3.83782869]
[1749450770519,0.26817296,649.11,648.25,3.83782869]
[1749450772017,0.26817296,649.11,648.26,0.843]
[1749450772222,0.26817296,649.11,648.26,4.68082869]
[1749450775424,0.26817296,649.11,648.26,0.843]
[1749450775924,0.26817296,649.11,648.27,3.83782869]
[1749450776322,0.26817296,649.11,648.29,3.83782869]
[1749450777722,0.26817296,649.11,648.3,3.83782869]
[1749450779027,0.26817296,649.11,648.31,3.83782869]
[1749450780323,0.26817296,649.11,648.32,3.83782869]
[1749450783535,0.26817296,649.11,648.31,3.83782869]
[1749450785038,0.26817296,649.11,648.32,3.83782869]
[1749450785533,0.26817296,649.11,648.26,0.843]
[1749450785534,0.26817296,649.11,648.4,3.83782869]
[1749450785738,0.26817296,649.11,648.41,3.83782869]
[1749450786335,0.26817296,649.11,648.26,0.843]
[1749450786336,0.26817296,649.11,648.42,3.83782869]
[1749450787640,0.26817296,649.11,648.44,3.83782869]
[1749450787936,0.26817296,649.11,648.46,3.83782869]
[1749450789936,0.26817296,649.11,648.47,3.83782869]
[1749450790335,0.26817296,649.11,648.45,3.83782869]
[1749450791741,0.26817296,649.11,648.46,3.83782869]
[1749450792942,0.26817296,649.11,648.47,3.83782869]
[1749450793338,0.26817296,649.11,648.48,3.83782869]
[1749450794839,0.26817296,649.11,648.49,3.83782869]
[1749450795139,0.26817296,649.11,648.5,3.83782869]
[1749450795642,0.26817296,649.11,648.5,4.85582869]
[1749450796138,0.26817296,649.11,648.52,3.83782869]
[1749450797941,0.26817296,649.11,648.5,1.018]
[1749450813755,0.26817296,649.11,648.53,3.83782869]
[1749450833269,1.11253265,649.39,648.53,3.83782869]
[1749450833472,0.2681368,649.03,648.53,3.83782869]
[1749450833670,1.11253265,649.37,648.53,3.83782869]
[1749450833873,0.26813886,649.03,648.53,3.83782869]
[1749450834271,1.11253265,649.34,648.36,3.83782869]
[1749450834570,1.15424333,649.51,648.36,3.83782869]
[1749450834571,0.26814299,649.02,648.36,3.83782869]
[1749450834873,1.11253265,649.32,648.36,3.83782869]
[1749450835169,0.26816262,649.02,648.36,3.83782869]
[1749450835370,1.11253265,649.3,648.36,3.83782869]
[1749450835575,0.26816366,649.09,648.36,3.83782869]
[1749450836573,0.26816366,649.09,648.37,3.83782869]
[1749450837980,0.26816366,649.09,648.38,3.83782869]
[1749450844287,0.26816366,649.09,648.54,3.83782869]
[1749450847785,0.26816366,649.09,648.53,3.83782869]
[1749450860598,0.26816366,649.09,648.4,3.83782869]
[1749450860900,0.26816366,649.09,648.39,3.83782869]
[1749450862197,0.26816366,649.09,648.38,3.83782869]
[1749450863600,0.26816366,649.09,648.39,3.83782869]
[1749450865001,0.26816366,649.09,648.37,3.83782869]
[1749450865504,0.26816366,649.09,648.36,3.83782869]
[1749450865804,0.26816366,649.09,648.37,3.83782869]
[1749450867099,0.26816366,649.09,648.39,3.83782869]
[1749450870006,0.26816366,649.09,648.35,3.83782869]
[1749450870408,0.26816366,649.09,648.44,3.83782869]
[1749450871809,0.26816366,649.09,648.45,3.83782869]
[1749450872608,0.26816366,649.09,648.38,3.83782869]
[1749450874809,0.26816366,649.09,648.4,3.83782869]
[1749450875211,0.26816366,649.09,648.39,3.83782869]
[1749450875813,0.26816366,649.09,648.4,1.43]
[1749450879810,0.26816366,649.09,648.43,3.83782869]
[1749450882013,0.26816366,649.09,648.44,3.83782869]
[1749450882511,0.26816366,649.09,648.4,1.43]
[1749450899824,0.26816366,649.09,648.27,3.83782869]
[1749450900024,0.26816366,649.09,648.28,4.14633735]
[1749450900329,0.26816366,649.09,648.29,0.30850391]
[1749450902423,0.26816366,649.09,648.29,4.1463326]
[1749450902830,0.26816366,649.09,648.32,3.83782869]
[1749450903131,0.26816366,649.09,648.32,4.14631832]
[1749450903325,0.26816366,649.09,648.34,3.83782869]
[1749450903925,0.26816366,649.09,648.35,1.049]
[1749450905427,0.26816366,649.09,648.43,3.83782869]
[1749450906343,0.26816366,649.09,648.36,3.83782869]
[1749450906929,0.26816366,649.09,648.35,4.88682869]
[1749450907434,0.26816366,649.09,648.36,3.83782869]
[1749450907828,0.26816366,649.09,648.35,1.049]
[1749450907829,0.26816366,649.09,648.37,3.83782869]
[1749450908631,0.26816366,649.09,648.36,3.83782869]
[1749450909132,0.26816366,649.09,648.38,3.83782869]
[1749450909435,0.26816366,649.09,648.35,1.049]
[1749450910533,0.26816366,649.09,648.36,3.83782869]
[1749450913240,0.26816366,649.09,648.35,1.049]
[1749450917839,0.26816366,649.09,648.32,0.30848963]
[1749450921150,0.26816366,649.09,648.33,1.437]
[1749450934757,0.26816366,649.09,648.33,5.27482869]
[1749450935158,0.26816366,649.09,648.34,3.83782869]
[1749450935662,0.26816366,649.09,648.35,3.83782869]
[1749450936163,0.26816366,649.09,648.34,3.83782869]
[1749450937959,0.26816366,649.09,648.33,1.437]
[1749450943468,0.26816366,649.09,648.33,5.27482869]
[1749450944161,0.26816366,649.09,648.33,3.83782869]
[1749450944863,0.26816366,649.09,648.34,3.83782869]
[1749450947271,0.26816366,649.09,648.35,1.359]
[1749450947467,0.26816366,649.09,648.35,5.19682869]
[1749450949267,0.26816366,649.09,648.36,3.83782869]
[1749450950173,0.26816366,649.09,648.43,3.83782869]
[1749450950768,0.26816366,649.09,648.44,3.83782869]
[1749450953169,0.26816366,649.09,648.45,3.83782869]
[1749450953668,0.26816366,649.09,648.44,3.83782869]
[1749450954571,0.26816366,649.09,648.45,3.83782869]
[1749450956673,0.26816366,649.09,648.46,3.83782869]
[1749450956871,0.26816366,649.09,648.35,1.359]
[1749450968078,0.26816366,649.09,648.32,0.30848963]
[1749450970683,0.26816366,649.09,648.33,0.889]
[1749450983092,1.10905226,649.34,648.33,0.889]
[1749450983295,1.10905226,649.5,648.33,0.889]
[1749450983491,1.41698617,649.49,648.33,0.889]
[1749450983695,1.41699091,649.48,648.33,0.889]
[1749450983994,1.41699566,649.47,648.33,0.889]
[1749450984195,1.4170004,649.46,648.33,0.889]
[1749450984395,1.41700514,649.45,648.33,0.889]
[1749450984695,1.41700988,649.44,648.33,0.889]
[1749450984995,1.41701462,649.43,648.33,0.889]
[1749450985295,1.41701936,649.42,648.33,0.889]
[1749450985494,1.10905226,649.41,648.33,0.889]
[1749450985690,1.10905226,649.4,648.33,0.889]
[1749450985894,1.10905226,649.39,648.33,0.889]
[1749450986095,1.10905226,649.38,648.33,0.889]
[1749450986298,1.10905226,649.37,648.33,0.889]
[1749450986491,1.10905226,649.41,648.33,0.889]
[1749450986691,0.26818639,649.12,648.33,0.889]
[1749450991902,0.26818639,649.12,648.32,0.30848963]
[1749450994000,0.26818639,649.12,648.42,3.83782869]
[1749450994401,0.26818639,649.12,648.41,3.83782869]
[1749450994898,0.26818639,649.12,648.42,1.243]
[1749451004606,0.26818639,649.12,648.47,3.83782869]
[1749451006711,0.26818639,649.12,648.46,3.83782869]
[1749451007310,0.26818639,649.12,648.45,3.83782869]
[1749451007706,0.26818639,649.12,648.46,3.83782869]
[1749451012617,0.26818639,649.12,648.43,3.83782869]
[1749451015713,0.26818639,649.12,648.42,1.243]
[1749451024122,0.26818639,649.12,648.32,0.30848963]
[1749451027126,0.26818639,649.12,648.33,1.028]
[1749451027326,0.26818639,649.12,648.34,0.30848011]
[1749451028829,0.26818639,649.12,648.47,3.83782869]
[1749451030226,0.26818639,649.12,648.48,3.83782869]
[1749451030531,0.26818639,649.12,648.47,3.83782869]
[1749451031430,0.26818639,649.12,648.5,3.83782869]
[1749451032426,0.26818639,649.12,648.51,3.83782869]
[1749451036532,0.26818639,649.12,648.52,3.83782869]
[1749451037831,0.26818639,649.12,648.49,3.83782869]
[1749451040539,0.26818639,649.12,648.51,3.83782869]
[1749451041436,0.26818639,649.12,648.34,0.30848011]
[1749451053855,0.26818639,649.12,648.34,4.1463088]
[1749451055958,0.26818639,649.12,648.35,0.867]
[1749451056156,0.26818639,649.12,648.36,0.3084706]
[1749451060560,0.26818639,649.12,648.45,3.83782869]
[1749451060963,0.26818639,649.12,648.44,3.83782869]
[1749451061559,0.26818639,649.12,648.45,3.83782869]
[1749451061963,0.26818639,649.12,648.46,3.83782869]
[1749451062764,0.26818639,649.12,648.45,3.83782869]
[1749451063262,1.11000718,649.6,648.45,4.14625647]
[1749451063462,0.26810271,649.22,648.45,4.14625647]
[1749451063661,0.26810271,649.22,648.47,3.83782869]
[1749451063861,1.11000718,649.57,648.47,3.83782869]
[1749451064162,0.26808516,649.22,648.47,3.83782869]
[1749451064366,1.11000718,649.55,648.47,3.83782869]
[1749451064566,0.26808619,649.22,648.47,3.83782869]
[1749451064764,1.11000718,649.53,648.46,3.83782869]
[1749451064967,1.11000718,649.52,648.46,3.83782869]
[1749451065262,0.26808825,649.22,648.45,4.14625647]
[1749451065971,0.26808825,649.22,648.46,3.83782869]
[1749451066364,0.26808825,649.22,648.58,3.83782869]
[1749451066867,0.26808825,649.22,648.57,3.83782869]
[1749451067264,0.26808825,649.22,648.45,0.30842778]
[1749451067265,0.26808825,649.22,648.58,3.83782869]
[1749451067765,0.26808825,649.22,648.57,3.83782869]
[1749451068168,0.26808825,649.22,648.58,3.83782869]
[1749451069466,0.26808825,649.22,648.53,3.83782869]
[1749451071371,0.26808825,649.22,648.52,3.83782869]
[1749451071771,0.26808825,649.22,648.54,3.83782869]
[1749451072668,0.26808825,649.22,648.55,3.83782869]
[1749451074072,0.26808825,649.22,648.56,3.83782869]
[1749451074673,0.26808825,649.22,648.57,1.033]
[1749451079478,0.26808825,649.22,648.6,3.83782869]
[1749451081472,0.26808825,649.22,648.62,3.83782869]
[1749451084592,0.26808825,649.22,648.63,3.83782869]
[1749451091386,0.26808825,649.22,648.62,3.83782869]
[1749451093586,0.26808825,649.22,648.63,0.925]
[1749451104597,0.26808825,649.22,648.59,3.83782869]
[1749451104798,0.26808825,649.22,648.61,3.83782869]
[1749451105698,0.26808825,649.22,648.58,3.83782869]
[1749451106095,0.26808825,649.22,648.6,3.83782869]
[1749451106695,0.26808825,649.22,648.63,3.83782869]
[1749451107595,0.26808825,649.22,648.66,3.83782869]
[1749451108095,0.26808825,649.22,648.64,3.83782869]
[1749451108596,0.26808825,649.22,648.62,3.83782869]
[1749451108896,0.26808825,649.22,648.54,3.83782869]
[1749451109395,0.26808825,649.22,648.55,3.83782869]
[1749451109896,0.26808825,649.22,648.54,3.83782869]
[1749451110296,0.26808825,649.22,648.55,3.83782869]
[1749451113004,0.26808825,649.22,648.56,3.83782869]
[1749451114801,0.26808825,649.22,648.55,3.83782869]
[1749451115603,0.26808825,649.22,648.58,3.83782869]
[1749451116002,0.26808825,649.22,648.57,3.83782869]
[1749451116706,0.26808825,649.22,648.56,3.83782869]
[1749451118004,0.26808825,649.22,648.57,3.83782869]
[1749451118403,0.26808825,649.22,648.71,3.83782869]
[1749451118902,1.15274469,649.75,648.71,3.83782869]
[1749451118903,0.2680325,649.29,648.71,3.83782869]
[1749451119304,0.2680325,649.29,648.5,5.3393006]
[1749451119703,0.2680325,649.29,648.45,0.30842778]
[1749451129515,1.11000718,649.79,648.45,0.30842778]
[1749451129713,1.11000718,649.78,648.45,0.30842778]
[1749451129917,0.2680356,649.36,648.45,0.30842778]
[1749451130116,1.11000718,649.76,648.45,0.30842778]
[1749451130315,0.26804902,649.45,648.45,0.30842778]
[1749451138825,0.26804902,649.45,648.46,1.322]
[1749451139124,0.26804902,649.45,648.47,0.30841827]
[1749451139526,0.26804902,649.45,648.61,3.83782869]
[1749451140925,0.26804902,649.45,648.6,3.83782869]
[1749451141322,0.26804902,649.45,648.61,3.83782869]
[1749451141926,0.26804902,649.45,648.6,3.83782869]
[1749451143222,0.26804902,649.45,648.51,3.83782869]
[1749451143426,0.26804902,649.45,648.52,0.30839449]
[1749451150027,0.26804902,649.45,648.56,3.83782869]
[1749451150223,0.26804902,649.45,648.57,0.30837072]
[1749451166441,0.26804902,649.45,648.58,1.392]
[1749451178452,0.26804902,649.45,648.57,0.30837072]
[1749451180151,0.26804902,649.45,648.59,3.83782869]
[1749451181049,0.26804902,649.45,648.61,3.83782869]
[1749451181448,0.26804902,649.45,648.62,5.09182869]
[1749451181951,0.26804902,649.45,648.62,1.254]
[1749451182453,0.26804902,649.45,648.65,3.83782869]
[1749451184153,0.26804902,649.45,648.67,3.83782869]
[1749451184650,0.26804902,649.45,648.68,3.83782869]
[1749451185048,0.26804902,649.45,648.69,3.83782869]
[1749451186447,0.26804902,649.45,648.71,3.83782869]
[1749451188250,0.26804902,649.45,648.72,3.83782869]
[1749451188754,0.26804902,649.45,648.76,3.83782869]
[1749451189955,0.26804902,649.45,648.79,3.83782869]
[1749451190455,0.26804902,649.45,648.76,3.83782869]
[1749451191956,0.26804902,649.45,648.8,3.83782869]
[1749451192353,0.26804902,649.45,648.79,3.83782869]
[1749451194457,0.26804902,649.45,648.8,3.83782869]
[1749451196253,0.26804902,649.45,648.82,3.83782869]
[1749451196854,0.26804902,649.45,648.83,3.83782869]
[1749451197059,0.26804902,649.45,648.83,5.19882869]
[1749451197758,0.26804902,649.45,648.83,1.361]
[1749451221086,0.26804902,649.45,648.57,0.30837072]
[1749451226984,0.26804902,649.45,648.68,3.83782869]
[1749451227986,0.26804902,649.45,648.69,3.83782869]
[1749451228283,0.26804902,649.45,648.66,3.83782869]
[1749451229384,0.26804902,649.45,648.64,3.83782869]
[1749451231188,0.26804902,649.45,648.57,0.30837072]
[1749451238193,0.26804902,649.45,648.58,1.336]
[1749451238391,0.26804902,649.45,648.59,0.30836121]
[1749451240293,0.26804902,649.45,648.89,3.83782869]
[1749451244193,0.26804902,649.45,648.88,3.83782869]
[1749451246102,0.26804902,649.45,648.83,3.83782869]
[1749451248002,0.26804902,649.45,648.82,3.83782869]
[1749451248202,0.26804902,649.45,648.8,3.83782869]
[1749451248800,0.26804902,649.45,648.79,3.83782869]
[1749451249706,0.26804902,649.45,648.59,0.30836121]
[1749451249707,0.26804902,649.45,648.72,3.83782869]
[1749451250105,0.26804902,649.45,648.73,3.83782869]
[1749451251406,0.26804902,649.45,648.63,3.83782869]
[1749451251606,0.26804902,649.45,648.64,0.30833744]
[1749451254008,0.26804902,649.45,648.64,4.14616613]
[1749451256011,0.26804902,649.45,648.66,3.83782869]
[1749451256209,0.26804902,649.45,648.67,0.30832318]
[1749451257613,0.26804902,649.45,648.68,0.887]
[1749451268118,0.26804902,649.45,648.7,3.83782869]
[1749451268922,0.26804902,649.45,648.71,3.83782869]
[1749451272022,0.26804902,649.45,648.7,3.83782869]
[1749451273219,0.26804902,649.45,648.7,4.14613761]
[1749451273421,0.26804902,649.45,648.71,3.83782869]
[1749451275322,0.26804902,649.45,648.73,3.83782869]
[1749451276618,0.26804902,649.45,648.72,3.83782869]
[1749451277019,0.26804902,649.45,648.74,3.83782869]
[1749451277524,0.26804902,649.45,648.81,3.83782869]
[1749451277823,0.26804902,649.45,648.84,3.83782869]
[1749451281524,0.26804902,649.45,648.88,3.83782869]
[1749451281926,0.26804902,649.45,648.9,3.83782869]
[1749451283823,0.26804902,649.45,648.89,4.75982869]
[1749451285526,0.26804902,649.45,648.9,3.83782869]
[1749451287425,0.26804902,649.45,648.91,3.83782869]
[1749451288429,0.26804902,649.45,648.92,3.83782869]
[1749451291530,0.26804902,649.45,648.93,3.83782869]
[1749451292330,0.26804902,649.45,648.89,0.922]
[1749451304143,0.26804902,649.45,648.7,0.30830892]
[1749451307342,0.26804902,649.45,648.71,0.909]
[1749451324263,1.10557588,649.8,648.72,0.30829942]
[1749451324467,0.26796852,649.58,648.72,0.30829942]
[1749451331166,0.26796852,649.58,648.73,0.925]
[1749451331471,0.26796852,649.58,648.74,0.30828991]
[1749451339682,0.26796852,649.58,648.79,3.83782869]
[1749451341383,0.26796852,649.58,648.8,3.83782869]
[1749451341879,0.26796852,649.58,648.74,0.30828991]
[1749451341880,0.26796852,649.58,648.78,3.83782869]
[1749451344982,0.26796852,649.58,648.79,3.83782869]
[1749451346385,0.26796852,649.58,648.8,3.83782869]
[1749451347182,0.26796852,649.58,648.79,3.83782869]
[1749451347788,0.26796852,649.58,648.87,3.83782869]
[1749451348189,0.26796852,649.58,648.89,3.83782869]
[1749451349789,1.10401424,650.12,648.9,0.3082139]
[1749451349986,0.26791179,649.67,648.9,0.3082139]
[1749451350186,1.10401424,650.1,648.9,0.3082139]
[1749451350391,1.10401424,650.09,648.9,0.3082139]
[1749451350591,0.26791798,649.67,648.9,0.3082139]
[1749451350789,1.10401424,650.07,648.9,0.3082139]
[1749451350990,0.26792107,649.67,648.9,0.3082139]
[1749451351291,1.10401424,650.05,648.9,0.3082139]
[1749451351490,0.26792313,649.67,648.9,0.3082139]
[1749451351786,4.02152339,650.25,648.9,0.3082139]
[1749451352090,0.26790251,649.67,648.9,0.3082139]
[1749451352290,1.10401424,650.23,648.9,0.3082139]
[1749451352488,1.41160244,650.22,648.9,0.3082139]
[1749451352692,1.1155865,650.3,648.9,0.3082139]
[1749451352693,0.2679056,649.9,648.9,0.3082139]
[1749451358290,0.2679056,649.9,648.91,1.322]
[1749451364997,0.2679056,649.9,648.94,3.83782869]
[1749451365400,0.2679056,649.9,648.95,3.83782869]
[1749451366306,0.2679056,649.9,648.94,3.83782869]
[1749451366797,0.2679056,649.9,648.95,3.83782869]
[1749451368500,0.2679056,649.9,648.96,3.83782869]
[1749451371106,0.2679056,649.9,648.99,3.83782869]
[1749451372206,0.2679056,649.9,649.01,3.83782869]
[1749451373004,0.2679056,649.9,648.9,0.3082139]
[1749451374010,0.2679056,649.9,648.92,3.83782869]
[1749451375807,0.2679056,649.9,648.91,1.253]
[1749451391617,0.2679056,649.9,648.95,3.83782869]
[1749451392017,0.2679056,649.9,648.91,1.253]